bitfinex-derivatives/quotes_SOLF0:USTF0_20260220
["timestamp","ask_amount","ask_price","bid_price","bid_amount"]
[1771574982415,8.51457215,83.479,83.445,18.80458139]
[1771574997431,8.28684872,83.469,83.436,17.48175571]
[1771574997925,3.10096541,83.46,83.423,17.48175571]
[1771574998823,3.10096541,83.46,83.425,10.7929]
[1771574999026,8.26374405,83.461,83.426,17.48175571]
[1771575000528,8.36070766,83.479,83.431,17.48175571]
[1771575001829,8.36070766,83.479,83.443,17.48175571]
[1771575002230,11.39897768,83.5,83.451,17.48175571]
[1771575002933,8.25452231,83.499,83.451,17.48175571]
[1771575003832,7.80593686,83.479,83.442,17.02514911]
[1771575005533,7.80593686,83.479,83.436,10.7914]
[1771575005534,7.80593686,83.479,83.444,17.02514911]
[1771575005735,11.08159976,83.49,83.444,17.02514911]
[1771575006135,7.98063435,83.499,83.454,17.02514911]
[1771575006431,7.94278073,83.497,83.454,17.02514911]
[1771575006734,7.93965241,83.508,83.461,17.02514911]
[1771575009939,3.10096541,83.5,83.461,17.02514911]
[1771575011940,7.93965241,83.508,83.461,17.02514911]
[1771575012235,24.79104497,83.51,83.469,17.35527401]
[1771575012440,3.10096541,83.51,83.469,17.35527401]
[1771575014031,7.2022133,83.509,83.469,17.35527401]
[1771575014432,3.10096541,83.5,83.471,17.35527401]
[1771575015041,7.2022133,83.509,83.471,17.35527401]
[1771575015740,7.2022133,83.509,83.473,17.35527401]
[1771575017835,7.2022133,83.509,83.475,17.35527401]
[1771575018543,3.10096541,83.5,83.475,17.35527401]
[1771575023940,7.2022133,83.509,83.475,17.35527401]
[1771575027240,8.64212238,83.541,83.475,17.35527401]
[1771575027445,17.30632154,83.544,83.507,17.35527401]
[1771575027646,3.10096541,83.54,83.507,17.35527401]
[1771575027845,3.10096541,83.52,83.471,17.35527401]
[1771575028144,3.10096541,83.52,83.481,17.35527401]
[1771575028337,3.10096541,83.54,83.481,17.35527401]
[1771575029446,3.10096541,83.54,83.491,17.35527401]
[1771575031648,3.10096541,83.54,83.492,10.7842]
[1771575031948,3.10096541,83.55,83.493,17.35527401]
[1771575032147,3.10096541,83.55,83.501,17.35527401]
[1771575034448,2.24040767,83.549,83.501,17.35527401]
[1771575034651,3.10096541,83.54,83.501,17.35527401]
[1771575035146,2.24040767,83.549,83.501,17.35527401]
[1771575035748,3.10096541,83.53,83.501,17.35527401]
[1771575035947,2.8593252,83.529,83.481,17.35527401]
[1771575038346,3.09047152,83.527,83.481,17.35527401]
[1771575049561,3.10096541,83.54,83.484,16.94421279]
[1771575049959,3.10096541,83.54,83.458,22.34752591]
[1771575049960,3.10096541,83.54,83.491,16.94421279]
[1771575050353,5.78631254,83.54,83.491,16.94421279]
[1771575051060,5.77655429,83.53,83.491,16.94421279]
[1771575051257,2.67558888,83.529,83.491,16.94421279]
[1771575051656,2.54895207,83.539,83.491,16.94421279]
[1771575053762,2.30326344,83.55,83.494,16.94421279]
[1771575053963,2.30326344,83.55,83.501,16.94421279]
[1771575054163,2.30326344,83.55,83.511,16.94421279]
[1771575055268,5.38090277,83.56,83.511,16.94421279]
[1771575055667,3.09514774,83.55,83.511,16.94421279]
[1771575061780,2.19969049,83.549,83.511,16.94421279]
[1771575065169,3.09514774,83.53,83.495,16.44973234]
[1771575065779,2.40687016,83.539,83.495,16.44973234]
[1771575070281,3.09514774,83.55,83.501,16.93126097]
[1771575071779,5.84307605,83.55,83.501,16.93126097]
[1771575071978,2.74792831,83.549,83.501,16.93126097]
[1771575075685,13.03043229,83.546,83.501,16.93126097]
[1771575075886,2.25303229,83.545,83.501,16.93126097]
[1771575078086,3.09514774,83.54,83.501,16.93126097]
[1771575079184,16.88955059,83.586,83.49,16.93126097]
[1771575079185,3.09514774,83.52,83.49,16.93126097]
[1771575079986,2.21985685,83.529,83.49,16.93126097]
[1771575080585,3.09514774,83.52,83.49,16.93126097]
[1771575081088,12.85710809,83.524,83.49,16.93126097]
[1771575085296,10.782,83.51,83.49,6.097e-05]
[1771575088693,10.782,83.51,83.48,16.93126097]
[1771575090894,10.7832,83.501,83.48,6.097e-05]
[1771575091398,27.74031735,83.511,83.48,6.097e-05]
[1771575091592,10.7818,83.511,83.48,6.097e-05]
[1771575091794,16.95851735,83.521,83.48,3.09520871]
[1771575091995,20.05366509,83.53,83.48,3.09520871]
[1771575093398,10.7805,83.522,83.48,3.09520871]
[1771575095301,16.95851735,83.519,83.48,6.097e-05]
[1771575095502,16.95851735,83.509,83.47,16.93126097]
[1771575097502,10.7826,83.505,83.47,16.93126097]
[1771575099702,10.7829,83.503,83.47,16.93126097]
[1771575101505,26.94414923,83.503,83.47,16.93126097]
[1771575103004,16.16124923,83.502,83.47,16.93126097]
[1771575103401,16.16124923,83.502,83.46,3.09514774]
[1771575103608,16.16124923,83.495,83.455,15.61355084]
[1771575104508,16.16124923,83.485,83.431,15.61355084]
[1771575104713,16.16124923,83.479,83.431,15.61355084]
[1771575105711,10.7863,83.477,83.431,15.61355084]
[1771575105911,16.16124923,83.476,83.431,15.61355084]
[1771575112213,16.16124923,83.476,83.43,3.09514774]
[1771575112214,16.16124923,83.516,83.441,15.61355084]
[1771575112419,16.16124923,83.489,83.441,15.61355084]
[1771575112816,16.16124923,83.487,83.441,15.61355084]
[1771575113514,16.16124923,83.479,83.441,15.61355084]
[1771575119621,26.94604923,83.488,83.441,15.61355084]
[1771575120614,10.7852,83.485,83.441,15.61355084]
[1771575120820,16.16124923,83.484,83.441,15.61355084]
[1771575121024,16.16124923,83.479,83.441,15.61355084]
[1771575122322,16.16124923,83.469,83.421,15.61355084]
[1771575123925,15.24309299,83.468,83.421,15.61355084]
[1771575127329,10.7879,83.464,83.421,15.61355084]
[1771575127517,15.46942877,83.463,83.421,15.61355084]
[1771575138244,15.46942877,83.463,83.423,15.29842404]
[1771575139635,15.46942877,83.472,83.431,15.29842404]
[1771575139841,15.46942877,83.481,83.441,15.29842404]
[1771575141644,15.46942877,83.479,83.431,15.29842404]
[1771575146147,15.46942877,83.479,83.432,15.29842404]
[1771575147648,15.46942877,83.479,83.437,10.7913]
[1771575147847,15.46942877,83.479,83.438,15.29842404]
[1771575156254,15.46942877,83.479,83.421,22.34752591]
[1771575156255,15.46942877,83.469,83.422,15.29842404]
[1771575156557,10.7868,83.473,83.422,15.29842404]
[1771575156558,15.46942877,83.459,83.422,15.29842404]
[1771575173672,16.32800663,83.474,83.422,15.29842404]
[1771575175577,3.10065856,83.47,83.422,15.29842404]
[1771575175776,16.32800663,83.469,83.422,15.29842404]
[1771575178779,16.32800663,83.469,83.424,15.16272132]
[1771575179379,16.32800663,83.469,83.428,10.7925]
[1771575179977,16.32800663,83.469,83.428,25.95522132]
[1771575181378,16.32800663,83.469,83.428,15.16272132]
[1771575181779,16.32800663,83.469,83.432,10.792]
[1771575181975,16.32800663,83.489,83.451,15.16272132]
[1771575220596,16.32800663,83.489,83.453,10.7892]
[1771575223199,3.10175403,83.49,83.448,14.73767383]
[1771575223398,14.39960896,83.489,83.448,14.73767383]
[1771575228304,14.39960896,83.479,83.439,14.73767383]
[1771575229010,14.39960896,83.479,83.43,14.73767383]
[1771575229308,14.39960896,83.469,83.421,14.73767383]
[1771575229706,3.10175403,83.46,83.421,14.73767383]
[1771575229905,17.50136299,83.46,83.421,14.73767383]
[1771575233518,14.39960896,83.46,83.421,14.73767383]
[1771575242119,14.39960896,83.46,83.39,29.79670122]
[1771575242120,14.39960896,83.479,83.43,17.83917554]
[1771575242321,14.39960896,83.479,83.414,22.34752591]
[1771575242322,17.50111067,83.5,83.451,14.73767383]
[1771575242822,14.39960896,83.5,83.461,14.73767383]
[1771575243417,17.50111067,83.5,83.461,14.73767383]
[1771575251028,17.50111067,83.5,83.462,10.7881]
[1771575251229,17.50111067,83.5,83.461,14.73767383]
[1771575254027,15.31682648,83.498,83.461,14.73767383]
[1771575254929,10.7839,83.496,83.451,14.17703878]
[1771575255233,15.31682648,83.495,83.451,14.17703878]
[1771575256733,15.31682648,83.493,83.451,14.17703878]
[1771575257923,15.31682648,83.489,83.451,14.17703878]
[1771575258129,15.31682648,83.487,83.451,14.17703878]
[1771575263537,15.31682648,83.479,83.432,14.17703878]
[1771575263834,15.31682648,83.469,83.432,14.17703878]
[1771575267237,15.31682648,83.479,83.432,14.17703878]
[1771575269041,18.41832819,83.48,83.432,14.17703878]
[1771575271646,18.41832819,83.47,83.432,14.17703878]
[1771575281452,18.41832819,83.47,83.421,14.43452983]
[1771575293664,13.52278062,83.459,83.421,14.43452983]
[1771575297664,13.52278062,83.459,83.41,3.10150171]
[1771575297665,13.52278062,83.459,83.412,14.43452983]
[1771575299372,16.62428233,83.47,83.421,14.43452983]
[1771575299964,16.62420524,83.47,83.421,14.43452983]
[1771575300177,13.52278062,83.468,83.421,14.43452983]
[1771575301780,13.52278062,83.465,83.421,14.43452983]
[1771575302475,10.7879,83.464,83.421,14.43452983]
[1771575302879,13.52278062,83.463,83.421,14.43452983]
[1771575310880,13.18825014,83.473,83.421,14.43452983]
[1771575311080,13.18825014,83.473,83.431,14.13442677]
[1771575316690,13.18825014,83.473,83.432,14.13442677]
[1771575317293,13.18825014,83.473,83.433,10.7919]
[1771575317698,13.18825014,83.473,83.434,14.13442677]
[1771575319391,13.18825014,83.473,83.436,10.7915]
[1771575322996,3.10142462,83.48,83.402,29.20396091]
[1771575322997,3.10142462,83.48,83.442,14.13442677]
[1771575323198,8.69575855,83.479,83.442,14.13442677]
[1771575323398,13.18825014,83.479,83.442,14.13442677]
[1771575328204,13.18825014,83.479,83.434,14.13442677]
[1771575329098,10.7861,83.478,83.434,14.13442677]
[1771575329304,13.18825014,83.469,83.434,14.13442677]
[1771575331606,13.18825014,83.469,83.421,14.13442677]
[1771575332606,10.7875,83.468,83.421,14.13442677]
[1771575332807,13.18825014,83.459,83.421,14.13442677]
[1771575333009,13.18825014,83.459,83.404,22.34752591]
[1771575333010,13.18825014,83.459,83.404,14.13442677]
[1771575333702,10.7888,83.458,83.405,14.13442677]
[1771575333907,13.18825014,83.457,83.411,14.13442677]
[1771575334709,10.7888,83.458,83.421,14.13442677]
[1771575336009,13.18825014,83.467,83.421,14.13442677]
[1771575338812,3.10142462,83.45,83.406,22.34752591]
[1771575339006,13.23527062,83.449,83.39,16.33886445]
[1771575340511,13.23527062,83.449,83.4,3.10142462]
[1771575340707,13.23527062,83.449,83.401,13.23743983]
[1771575342617,13.23527062,83.449,83.411,13.23743983]
[1771575344012,13.23527062,83.461,83.421,13.23743983]
[1771575344519,13.23527062,83.461,83.43,3.10142462]
[1771575346621,13.23527062,83.461,83.44,3.10142462]
[1771575348121,13.23527062,83.461,83.43,16.33886445]
[1771575348918,13.23527062,83.461,83.44,3.10142462]
[1771575359026,13.23527062,83.461,83.43,16.33886445]
[1771575361930,13.23527062,83.461,83.44,3.10066724]
[1771575366037,13.23527062,83.461,83.43,3.10066724]
[1771575369732,13.23527062,83.461,83.409,24.36715081]
[1771575369939,21.564,83.51,83.32,168.1013]
[1771575369940,12.52902374,83.459,83.41,3.10066724]
[1771575370438,12.52902374,83.457,83.41,3.10066724]
[1771575371039,12.52902374,83.457,83.4,3.10066724]
[1771575371235,12.52902374,83.457,83.41,3.10066724]
[1771575371942,12.52902374,83.457,83.42,3.10066724]
[1771575373440,12.52902374,83.455,83.411,13.57215081]
[1771575374235,12.52902374,83.455,83.41,3.10066724]
[1771575377035,10.7894,83.453,83.41,3.10066724]
[1771575377239,12.52902374,83.452,83.41,3.10066724]
[1771575378244,10.7897,83.45,83.41,3.10066724]
[1771575378448,12.52902374,83.449,83.41,3.10066724]
[1771575379641,10.7901,83.448,83.41,3.10066724]
[1771575379843,12.52902374,83.447,83.41,3.10066724]
[1771575380248,10.7905,83.445,83.41,3.10066724]
[1771575380450,12.52902374,83.444,83.41,3.10066724]
[1771575380845,10.7884,83.461,83.43,16.67281805]
[1771575381049,10.7884,83.461,83.44,3.10066724]
[1771575381251,12.52902374,83.465,83.44,3.10066724]
[1771575382251,10.7882,83.463,83.44,6.724e-05]
[1771575387745,10.7883,83.461,83.43,16.67281805]
[1771575387952,12.52902374,83.46,83.43,16.67281805]
[1771575389160,12.52902374,83.46,83.43,3.10066724]
[1771575410773,12.52902374,83.46,83.43,16.74298379]
[1771575414476,13.44261828,83.481,83.441,13.64231655]
[1771575414681,13.44261828,83.491,83.451,13.64231655]
[1771575414978,13.44261828,83.491,83.46,3.10066724]
[1771575415775,13.44261828,83.491,83.46,16.74298379]
[1771575421181,13.44261828,83.518,83.48,3.10066724]
[1771575421385,13.44261828,83.518,83.481,13.64231655]
[1771575422080,13.44261828,83.518,83.49,3.09713737]
[1771575423981,12.18502256,83.548,83.51,16.02191685]
[1771575424389,12.18502256,83.548,83.52,3.09713737]
[1771575425282,12.18502256,83.548,83.5,3.09713737]
[1771575426186,12.18502256,83.548,83.5,16.02191685]
[1771575427484,12.18502256,83.548,83.51,3.09713737]
[1771575428986,12.18502256,83.548,83.5,16.02191685]
[1771575429585,13.3266437,83.559,83.511,13.06999145]
[1771575431089,13.3266437,83.559,83.52,16.16712882]
[1771575431480,16.42378107,83.57,83.52,16.16712882]
[1771575433491,16.42378107,83.57,83.522,13.06999145]
[1771575433685,13.3266437,83.58,83.522,13.06999145]
[1771575433892,13.3266437,83.58,83.466,167.8071]
[1771575433893,13.3266437,83.58,83.541,13.06999145]
[1771575434482,13.3266437,83.592,83.551,13.06999145]
[1771575434686,13.3266437,83.592,83.56,3.09713737]
[1771575435586,13.3266437,83.605,83.57,3.09713737]
[1771575435891,13.3266437,83.619,83.571,13.06999145]
[1771575436186,13.3266437,83.629,83.581,13.06999145]
[1771575436392,13.3266437,83.629,83.59,3.09713737]
[1771575437884,13.3266437,83.64,83.6,3.09713737]
[1771575438080,13.3266437,83.64,83.601,13.06999145]
[1771575438486,3.09713737,83.65,83.61,3.09713737]
[1771575438686,3.09713737,83.65,83.61,16.16712882]
[1771575438886,13.3266437,83.652,83.62,3.09713737]
[1771575439381,250.37430264,83.736,83.547,21.5543]
[1771575439382,3.09713737,83.66,83.609,13.06999145]
[1771575439583,13.3266437,83.649,83.6,3.09713737]
[1771575440187,13.3266437,83.639,83.597,13.06999145]
[1771575440395,13.3266437,83.629,83.584,13.06999145]
[1771575441190,13.3266437,83.629,83.59,16.16712882]
[1771575441588,16.42378107,83.64,83.59,16.16712882]
[1771575442594,13.3266437,83.629,83.58,3.09713737]
[1771575442893,13.3266437,83.629,83.58,16.16712882]
[1771575444395,13.3266437,83.629,83.591,13.06999145]
[1771575447488,13.3266437,83.629,83.58,3.09713737]
[1771575447693,13.3266437,83.619,83.577,13.06999145]
[1771575447892,13.3266437,83.635,83.581,13.06999145]
[1771575448496,3.09713737,83.63,83.581,13.06999145]
[1771575448796,3.09713737,83.63,83.582,13.06999145]
[1771575449095,16.42378107,83.63,83.582,13.06999145]
[1771575449594,16.42378107,83.63,83.584,10.7723]
[1771575449794,16.42378107,83.63,83.585,13.06999145]
[1771575450795,16.42378107,83.63,83.588,13.06999145]
[1771575450995,13.3266437,83.63,83.588,13.06999145]
[1771575451190,16.42378107,83.63,83.588,13.06999145]
[1771575451588,3.09713737,83.64,83.591,13.06999145]
[1771575451792,3.09713737,83.63,83.591,13.06999145]
[1771575452589,16.42378107,83.63,83.591,13.06999145]
[1771575458692,16.42378107,83.63,83.592,10.7714]
[1771575458897,3.09713737,83.64,83.593,13.27740686]
[1771575459202,15.51691325,83.64,83.593,13.27740686]
[1771575459700,15.51691325,83.64,83.596,13.27740686]
[1771575461505,3.09713737,83.62,83.585,13.27740686]
[1771575461703,15.51691325,83.62,83.585,13.27740686]
[1771575462100,3.09713737,83.62,83.585,13.27740686]
[1771575462404,15.51691325,83.63,83.585,13.27740686]
[1771575462606,3.09713737,83.62,83.585,13.27740686]
[1771575462805,15.51691325,83.62,83.585,13.27740686]
[1771575463403,3.09713737,83.63,83.585,13.27740686]
[1771575463702,15.51691325,83.63,83.585,13.27740686]
[1771575467711,3.09713737,83.64,83.592,13.27740686]
[1771575467906,15.51691325,83.64,83.592,13.27740686]
[1771575468709,15.51691325,83.64,83.597,13.27740686]
[1771575472115,12.41977588,83.637,83.597,13.27740686]
[1771575478225,12.41977588,83.634,83.584,13.27740686]
[1771575478431,3.09713737,83.64,83.584,13.27740686]
[1771575478432,3.09713737,83.62,83.584,13.27740686]
[1771575478630,12.41977588,83.619,83.584,13.27740686]
[1771575479731,12.41977588,83.619,83.576,10.7733]
[1771575480132,12.41977588,83.619,83.576,24.05070686]
[1771575480332,12.41977588,83.619,83.577,13.27740686]
[1771575481639,3.09713737,83.59,83.544,22.07896393]
[1771575481838,12.41977588,83.589,83.543,13.27740686]
[1771575482035,12.41977588,83.579,83.543,13.27740686]
[1771575483432,12.60401832,83.569,83.52,47.10703106]
[1771575483632,12.60401832,83.559,83.52,44.0140865]
[1771575484432,3.09294456,83.57,83.521,12.34722387]
[1771575484735,14.69539071,83.619,83.52,34.75980719]
[1771575484736,12.60401832,83.603,83.553,12.34722387]
[1771575484927,12.60401832,83.603,83.561,12.34722387]
[1771575485129,12.60401832,83.619,83.57,3.09294456]
[1771575485834,3.09294456,83.6,83.54,3.09294456]
[1771575486038,167.4323,83.654,83.541,12.34722387]
[1771575486039,15.69696288,83.59,83.541,12.34722387]
[1771575486434,12.60401832,83.59,83.55,3.09294456]
[1771575486634,12.60401832,83.59,83.55,15.44016843]
[1771575487139,12.60401832,83.59,83.55,12.34722387]
[1771575487635,3.09294456,83.58,83.531,12.30799675]
[1771575487834,10.7721,83.587,83.531,12.30799675]
[1771575487835,3.09294456,83.57,83.531,12.30799675]
[1771575489041,12.04333839,83.579,83.531,12.30799675]
[1771575492244,12.04333839,83.569,83.531,12.30799675]
[1771575492544,12.04333839,83.569,83.521,12.30799675]
[1771575492745,12.04333839,83.569,83.53,15.40094131]
[1771575493741,12.04333839,83.593,83.541,12.30799675]
[1771575493945,12.04333839,83.589,83.541,12.30799675]
[1771575494841,12.04333839,83.589,83.543,10.7777]
[1771575497639,12.04333839,83.589,83.544,12.30799675]
[1771575497846,12.04333839,83.609,83.561,12.30799675]
[1771575498441,12.04333839,83.608,83.561,12.30799675]
[1771575501347,10.768,83.618,83.561,12.30799675]
[1771575501348,12.04333839,83.599,83.561,12.30799675]
[1771575502148,12.04333839,83.599,83.562,10.7752]
[1771575503249,12.04333839,83.599,83.549,12.30799675]
[1771575503456,12.04333839,83.589,83.541,12.30799675]
[1771575504044,12.04333839,83.589,83.551,12.30799675]
[1771575504649,12.04333839,83.589,83.552,12.30799675]
[1771575506349,12.04333839,83.589,83.541,12.30799675]
[1771575506550,12.04333839,83.579,83.541,23.08589675]
[1771575507553,3.09294456,83.59,83.548,12.30799675]
[1771575507955,15.13628295,83.59,83.548,12.30799675]
[1771575508153,12.04333839,83.589,83.548,12.30799675]
[1771575508852,12.04333839,83.579,83.547,10.7771]
[1771575512058,12.04333839,83.579,83.537,10.7784]
[1771575513664,12.04333839,83.579,83.54,10.778]
[1771575516055,12.04333839,83.579,83.548,10.777]
[1771575516261,12.04333839,83.589,83.548,23.08499675]
[1771575518464,11.05829522,83.626,83.548,23.08499675]
[1771575518465,13.00342266,83.579,83.548,10.777]
[1771575518663,13.00342266,83.579,83.54,10.778]
[1771575519868,13.00342266,83.579,83.53,3.09294456]
[1771575519869,13.00342266,83.579,83.545,10.7774]
[1771575527983,13.00342266,83.577,83.53,12.9094432]
[1771575528379,13.00342266,83.577,83.532,10.779]
[1771575528584,13.00342266,83.577,83.533,12.9094432]
[1771575529287,10.7737,83.574,83.533,12.9094432]
[1771575529484,13.00342266,83.573,83.533,12.9094432]
[1771575531287,23.77732266,83.573,83.533,12.9094432]
[1771575534486,10.7742,83.571,83.533,12.9094432]
[1771575535689,23.77762266,83.571,83.533,12.9094432]
[1771575535989,3.09294456,83.57,83.533,12.9094432]
[1771575536283,16.09636722,83.57,83.533,12.9094432]
[1771575537483,13.00342266,83.568,83.533,12.9094432]
[1771575546493,11.61339738,83.58,83.54,3.09403401]
[1771575546790,11.61339738,83.58,83.52,31.66686263]
[1771575546791,11.61339738,83.59,83.551,12.56794743]
[1771575548799,12.68584707,83.602,83.551,12.56794743]
[1771575549094,8.74883914,83.601,83.551,12.56794743]
[1771575549297,8.74883914,83.6,83.551,12.56794743]
[1771575549487,8.74883914,83.599,83.551,12.56794743]
[1771575549791,12.68584707,83.602,83.562,12.35367313]
[1771575549996,8.75011977,83.601,83.562,12.35367313]
[1771575550192,8.75011977,83.6,83.562,12.35367313]
[1771575550400,12.68584707,83.602,83.562,12.35367313]
[1771575550594,8.74749886,83.601,83.562,12.35367313]
[1771575550789,8.74749886,83.6,83.564,12.35367313]
[1771575550994,12.68584707,83.602,83.564,12.35367313]
[1771575551187,8.74749975,83.601,83.564,12.35367313]
[1771575551389,8.74749975,83.6,83.564,12.35367313]
[1771575551598,12.68584707,83.602,83.564,12.35367313]
[1771575551799,8.74688682,83.601,83.564,12.35367313]
[1771575552099,8.74688682,83.6,83.564,12.35367313]
[1771575552398,12.68584707,83.6,83.564,12.35367313]
[1771575557700,15.77988108,83.6,83.564,12.35367313]
[1771575558397,12.68584707,83.6,83.564,12.35367313]
[1771575560198,15.77988108,83.6,83.564,12.35367313]
[1771575561999,12.68584707,83.6,83.564,12.35367313]
[1771575566404,15.77988108,83.6,83.564,12.35367313]
[1771575568300,15.77988108,83.6,83.554,12.35367313]
[1771575570412,15.77988108,83.6,83.559,12.35367313]
[1771575573010,12.68584707,83.604,83.569,12.35367313]
[1771575574505,12.68584707,83.604,83.551,12.35367313]
[1771575575412,3.09403401,83.6,83.551,12.35367313]
[1771575575607,12.68584707,83.599,83.551,12.35367313]
[1771575575806,12.68584707,83.599,83.555,12.35367313]
[1771575577311,10.7707,83.598,83.555,12.35367313]
[1771575577508,11.70520379,83.597,83.555,12.35367313]
[1771575578314,11.70520379,83.589,83.555,12.35367313]
[1771575579814,11.70520379,83.587,83.555,12.35367313]
[1771575591919,11.70520379,83.569,83.522,12.5676921]
[1771575592114,3.09403401,83.55,83.512,12.5676921]
[1771575592314,11.70520379,83.549,83.512,12.5676921]
[1771575592515,3.09403401,83.56,83.512,12.5676921]
[1771575593120,14.7992378,83.56,83.512,12.5676921]
[1771575593316,11.70520379,83.559,83.512,12.5676921]
[1771575594528,11.70520379,83.559,83.513,10.7815]
[1771575594721,11.70520379,83.559,83.514,12.5676921]
[1771575597420,14.7992378,83.57,83.521,12.5676921]
[1771575598833,14.7992378,83.57,83.523,12.5676921]
[1771575600024,11.70520379,83.569,83.523,12.5676921]
[1771575600225,10.775,83.564,83.523,12.5676921]
[1771575600925,3.09403401,83.57,83.523,12.5676921]
[1771575600926,10.7753,83.562,83.523,12.5676921]
[1771575601129,3.09403401,83.57,83.523,12.5676921]
[1771575601533,14.7992378,83.57,83.523,12.5676921]
[1771575601938,14.7992378,83.57,83.525,10.78]
[1771575602134,11.70520379,83.569,83.526,12.5676921]
[1771575603840,11.70520379,83.569,83.529,10.7794]
[1771575604135,11.70520379,83.569,83.473,35.96]
[1771575604136,15.13668853,83.58,83.53,14.76668102]
[1771575604343,15.13668853,83.58,83.531,11.67264701]
[1771575604344,12.04265452,83.58,83.531,11.67264701]
[1771575605743,15.13668853,83.58,83.542,11.67264701]
[1771575605944,15.13584842,83.58,83.542,11.67264701]
[1771575606946,15.13584842,83.58,83.544,10.7776]
[1771575607140,15.13584842,83.58,83.545,12.19468206]
[1771575608340,15.13584842,83.58,83.546,10.7772]
[1771575609241,15.13584842,83.58,83.53,3.0931939]
[1771575609242,15.13584842,83.58,83.547,12.19468206]
[1771575609447,11.32639307,83.592,83.557,22.97048206]
[1771575609845,11.32639307,83.592,83.565,10.7748]
[1771575611742,3.0931939,83.6,83.565,22.96948206]
[1771575613843,11.32639307,83.579,83.541,12.19468206]
[1771575614045,3.0931939,83.57,83.541,12.19468206]
[1771575614650,11.32639307,83.579,83.541,12.19468206]
[1771575617254,3.0931939,83.57,83.529,12.19468206]
[1771575618755,3.0931939,83.57,83.531,12.19468206]
[1771575621458,11.32639307,83.576,83.531,12.19468206]
[1771575623357,10.7736,83.575,83.531,12.19468206]
[1771575623560,11.32639307,83.569,83.531,12.19468206]
[1771575629658,14.69539071,83.612,83.52,3.0931939]
[1771575629659,11.32639307,83.559,83.521,12.19468206]
[1771575631757,11.32639307,83.549,83.51,12.19468206]
[1771575632760,10.7771,83.548,83.51,12.19468206]
[1771575633958,11.32639307,83.549,83.51,12.19468206]
[1771575635860,11.32639307,83.549,83.51,3.0931939]
[1771575636060,11.32639307,83.549,83.511,12.19468206]
[1771575636560,10.7761,83.556,83.511,12.19468206]
[1771575639465,21.79500701,83.556,83.511,12.19468206]
[1771575644160,11.01890701,83.556,83.52,11.81397689]
[1771575644766,10.7742,83.57,83.523,11.81397689]
[1771575644767,11.01890701,83.566,83.523,11.81397689]
[1771575646066,11.01890701,83.566,83.524,10.7801]
[1771575646265,11.01890701,83.566,83.525,11.81397689]
[1771575646966,11.01890701,83.566,83.528,22.59357689]
[1771575648568,3.0931939,83.56,83.528,22.59357689]
[1771575649770,11.01890701,83.559,83.528,22.59357689]
[1771575651572,11.01890701,83.559,83.528,10.7796]
[1771575652266,3.0931939,83.55,83.518,10.7809]
[1771575652466,11.01890701,83.549,83.518,10.7809]
[1771575653065,11.01890701,83.549,83.51,10.7819]
[1771575653369,7.01e-06,83.539,83.508,11.81397689]
[1771575654673,7.01e-06,83.539,83.517,10.7809]
[1771575658878,3.0931939,83.55,83.517,10.7809]
[1771575659079,9.97489521,83.549,83.518,11.81397689]
[1771575659274,9.97489521,83.559,83.519,10.7808]
[1771575659470,9.97489521,83.559,83.52,11.81397689]
[1771575660375,9.97489521,83.559,83.524,11.81397689]
[1771575660575,3.0931939,83.56,83.524,11.81397689]
[1771575661666,3.0931939,83.56,83.525,10.78]
[1771575662069,3.0931939,83.56,83.526,11.81397689]
[1771575663072,9.95029095,83.569,83.526,11.81397689]
[1771575663276,8.79036351,83.568,83.529,11.81397689]
[1771575663472,9.95029095,83.569,83.529,11.81397689]
[1771575664167,8.79176722,83.568,83.529,11.81397689]
[1771575664368,9.95029095,83.569,83.535,11.00156719]
[1771575664674,8.7920206,83.568,83.535,11.00156719]
[1771575664874,9.95029095,83.569,83.535,11.00156719]
[1771575665071,8.79202838,83.568,83.535,11.00156719]
[1771575665274,9.95029095,83.569,83.538,11.00156719]
[1771575666281,8.7941726,83.568,83.538,11.00156719]
[1771575666880,9.95029095,83.569,83.538,11.00156719]
[1771575676284,9.06943405,83.559,83.526,10.7798]
[1771575676489,3.09405272,83.56,83.527,10.80788997]
[1771575676882,9.06020047,83.559,83.527,10.80788997]
[1771575677483,9.0502859,83.549,83.515,10.7812]
[1771575679085,9.37990705,83.539,83.507,10.80788997]
[1771575683795,10.7767,83.552,83.507,10.80788997]
[1771575684002,3.09405272,83.55,83.517,10.80788997]
[1771575684200,9.2581924,83.549,83.517,10.80788997]
[1771575686303,3.09405272,83.55,83.517,10.80788997]
[1771575686498,9.36157255,83.559,83.517,10.80788997]
[1771575687606,3.09405272,83.55,83.517,10.80788997]
[1771575688308,9.26839513,83.549,83.517,10.80788997]
[1771575708830,3.09405272,83.53,83.498,11.1380119]
[1771575711131,3.09405272,83.55,83.498,11.1380119]
[1771575711431,8.78826574,83.549,83.501,11.1380119]
[1771575711731,8.78826574,83.548,83.501,11.1380119]
[1771575711932,3.09405272,83.55,83.501,11.1380119]
[1771575712728,13.87095272,83.55,83.501,11.1380119]
[1771575713335,13.87095272,83.55,83.502,10.7829]
[1771575713534,13.87095272,83.55,83.503,11.1380119]
[1771575714335,22.70907482,83.55,83.503,11.1380119]